[Event "FIDE WCCC Girls-10 2024"]
[Site "Montesilvano"]
[Date "2024.11.18"]
[Round "4.26"]
[White "Trzcinska, Weronika"]
[Black "Blakhina Viktoryia"]
[Result "0-1"]
[Annotator "NA RC"]
[ECO "C40"]
[WhiteElo "1653"]
[BlackElo "1436"]
[PlyCount "154"]
[EventDate "2024.11.18"]
[EventType "swiss"]
[EventCountry "ITA"]
[SourceTitle "playchess.com"]
[Source "ChessBase"]
[SourceQuality "1"]
[TimeControl "5400+30"]

1. e4 {[%emt 0:00:02]} e5 {[%emt 0:00:05]} 2. Nf3 {[%emt 0:00:12]} d5 {[%emt 0:00:20]} 3. exd5 {[%emt 0:01:48]} e4 {[%emt 0:00:15]} 4. Bb5+ {[%emt 0:07:20]} c6 {[%emt 0:05:03]} 5. dxc6 {[%emt 0:09:38]} bxc6 {[%emt 0:00:17]} 6. Qe2 {[%emt 0:14:35]} Qe7 {[%emt 0:07:49]} 7. Nd4 {[%emt 0:12:08]} cxb5 {[%emt 0:13:07]} 8. Nxb5 {[%emt 0:06:23]} Nf6 {[%emt 0:05:39]} 9. Qc4 {[%emt 0:03:05]} Be6 {[%emt 0:10:17]} 10. Qa4 {[%emt 0:08:54]} Nc6 {[%emt 0:09:49]} 11. Nd4 {[%emt 0:07:57]} Bd7 {[%emt 0:04:34]} 12. Nxc6 {[%emt 0:04:37]} Qd6 {[%emt 0:00:49]} 13. Nc3 {[%emt 0:04:54]} Bxc6 {[%emt 0:00:49]} 14. Qc4 {[%emt 0:02:03]} Be7 {[%emt 0:01:55]} 15. Nb5 {[%emt 0:00:44]} Qd7 {[%emt 0:02:52]} 16. Nd4 {[%emt 0:01:04]} Bd5 {[%emt 0:01:29]} 17. Qb5 {[%emt 0:00:34]} Qxb5 {[%emt 0:02:15]} 18. Nxb5 {[%emt 0:00:15]} Kd7 {[%emt 0:05:33]} 19. Nc3 {[%emt 0:01:13]} Rhc8 {[%emt 0:02:01]} 20. Nxd5 {[%emt 0:00:39]} Nxd5 {[%emt 0:00:10]} 21. c3 {[%emt 0:01:24]} Nf4 {[%emt 0:03:28]} 22. g3 {[%emt 0:00:40]} Nd3+ {[%emt 0:01:23]} 23. Ke2 {[%emt 0:00:18]} Bc5 {[%emt 0:03:35]} 24. f3 {[%emt 0:00:37]} f5 {[%emt 0:01:41]} 25. b4 {[%emt 0:00:32]} Bb6 {[%emt 0:04:55]} 26. Ba3 {[%emt 0:01:48]} a6 {[%emt 0:01:41]} 27. fxe4 {[%emt 0:00:31]} fxe4 {[%emt 0:00:50]} 28. Rhf1 {[%emt 0:00:42]} Ne5 {[%emt 0:02:56]} 29. Rf4 {[%emt 0:01:13]} Rc4 {[%emt 0:00:40]} 30. Raf1 {[%emt 0:02:19]} Rd8 {[%emt 0:02:52]} 31. Bc1 {[%emt 0:01:38]} Ke6 {[%emt 0:00:53]} 32. Rf8 {[%emt 0:01:14]} Nf3 {[%emt 0:02:17]} 33. Rxd8 {[%emt 0:00:49]} Bxd8 {[%emt 0:00:06]} 34. Rf2 {[%emt 0:00:38]} Bb6 {[%emt 0:00:53]} 35. Rg2 {[%emt 0:00:23]} Ne5 {[%emt 0:01:39]} 36. a4 {[%emt 0:00:54]} Nd3 {[%emt 0:01:37]} 37. a5 {[%emt 0:01:59]} Bxa5 {[%emt 0:00:23]} 38. bxa5 {[%emt 0:00:12]} Nxc1+ {[%emt 0:00:05]} 39. Kd1 {[%emt 0:00:18]} Nb3 {[%emt 0:00:20]} 40. Kc2 {[%emt 0:00:19]} Nxa5 {[%emt 0:00:10]} 41. Rg1 {[%emt 0:00:16]} Ra4 {[%emt 0:00:37]} 42. Rb1 {[%emt 0:00:19]} Ra2+ {[%emt 0:01:06]} 43. Kc1 {[%emt 0:00:24]} Nc4 {[%emt 0:00:40]} 44. Rb8 {[%emt 0:01:25]} Rxd2 {[%emt 0:01:15]} 45. Ra8 {[%emt 0:00:32]} Ra2 {[%emt 0:00:37]} 46. h3 {[%emt 0:00:22]} e3 {[%emt 0:00:12]} 47. Kd1 {[%emt 0:00:19]} Ke5 {[%emt 0:00:49]} 48. Rc8 {[%emt 0:00:20]} Nb2+ {[%emt 0:00:45]} 49. Ke2 {[%emt 0:00:33]} Nc4+ {[%emt 0:00:32]} 50. Kd3 {[%emt 0:00:29]} Nd6 {[%emt 0:00:37]} 51. Rc5+ {[%emt 0:00:29]} Ke6 {[%emt 0:00:36]} 52. Kxe3 {[%emt 0:00:30]} Ra4 {[%emt 0:00:28]} 53. Rc7 {[%emt 0:00:56]} Nf5+ {[%emt 0:00:22]} 54. Kf3 {[%emt 0:00:25]} Kf6 {[%emt 0:00:34]} 55. g4 {[%emt 0:00:35]} Ne7 {[%emt 0:00:32]} 56. c4 {[%emt 0:00:34]} Ra3+ {[%emt 0:00:19]} 57. Kg2 {[%emt 0:00:35]} Ng6 {[%emt 0:00:40]} 58. Rc6+ {[%emt 0:00:28]} Kg5 {[%emt 0:00:20]} 59. Rc5+ {[%emt 0:00:23]} Kf6 {[%emt 0:00:32]} 60. Rf5+ {[%emt 0:00:20]} Ke6 {[%emt 0:00:16]} 61. c5 {[%emt 0:00:51]} Nh4+ {[%emt 0:00:14]} 62. Kf2 {[%emt 0:00:12]} Nxf5 {[%emt 0:00:09]} 63. gxf5+ {[%emt 0:00:12]} Kxf5 {[%emt 0:00:05]} 64. c6 {[%emt 0:00:11]} Rc3 {[%emt 0:00:04]} 65. c7 {[%emt 0:00:27]} Rxc7 {[%emt 0:00:03]} 66. h4 {[%emt 0:00:06]} Rc3 {[%emt 0:00:12]} 67. h5 {[%emt 0:00:08]} a5 {[%emt 0:00:11]} 68. h6 {[%emt 0:00:16]} gxh6 {[%emt 0:00:05]} 69. Ke2 {[%emt 0:00:09]} a4 {[%emt 0:00:14]} 70. Kd2 {[%emt 0:00:09]} Rb3 {[%emt 0:00:06]} 71. Kc2 {[%emt 0:00:18]} h5 {[%emt 0:00:05]} 72. Kd2 {[%emt 0:00:13]} h4 {[%emt 0:00:09]} 73. Ke2 {[%emt 0:00:06]} a3 {[%emt 0:00:22]} 74. Kf2 {[%emt 0:00:10]} a2 {[%emt 0:00:05]} 75. Ke2 {[%emt 0:00:09]} a1=Q {[%emt 0:00:13]} 76. Kf2 {[%emt 0:00:08]} Qa2+ {[%emt 0:00:05]} 77. Kg1 {[%emt 0:00:12]} Rb1# {[%emt 0:00:04]} 0-1

[Event "FIDE WCCC Girls-10 2024"]
[Site "Montesilvano"]
[Date "2024.11.18"]
[Round "4.27"]
[White "Kuvandikova, Nafisa"]
[Black "Camacho Chavez, Nirvana"]
[Result "1-0"]
[Annotator "NA RC"]
[ECO "B17"]
[WhiteElo "1512"]
[BlackElo "1638"]
[PlyCount "137"]
[EventDate "2024.11.18"]
[EventType "swiss"]
[EventCountry "ITA"]
[SourceTitle "playchess.com"]
[Source "ChessBase"]
[SourceQuality "1"]
[TimeControl "5400+30"]

1. e4 {[%emt 0:00:27]} c6 {[%emt 0:00:03]} 2. d4 {[%emt 0:00:44]} d5 {[%emt 0:00:07]} 3. Nc3 {[%emt 0:00:27]} dxe4 {[%emt 0:00:09]} 4. Nxe4 {[%emt 0:00:32]} Nd7 {[%emt 0:00:23]} 5. Ng5 {[%emt 0:00:38]} Ngf6 {[%emt 0:00:16]} 6. Bd3 {[%emt 0:00:55]} e6 {[%emt 0:00:16]} 7. c3 {[%emt 0:03:40]} Bd6 {[%emt 0:00:45]} 8. Ne2 {[%emt 0:03:30]} h6 {[%emt 0:00:25]} 9. Nf3 {[%emt 0:01:11]} Qc7 {[%emt 0:01:04]} 10. Qc2 {[%emt 0:00:47]} Nb6 {[%emt 0:03:28]} 11. Bd2 {[%emt 0:00:47]} Nbd5 {[%emt 0:00:24]} 12. h3 {[%emt 0:01:37]} b6 {[%emt 0:01:20]} 13. g4 {[%emt 0:03:21]} h5 {[%emt 0:02:37]} 14. g5 {[%emt 0:00:27]} Nd7 {[%emt 0:00:25]} 15. h4 {[%emt 0:00:46]} Bb7 {[%emt 0:00:32]} 16. O-O-O {[%emt 0:00:44]} Nf4 {[%emt 0:00:31]} 17. Nxf4 {[%emt 0:01:30]} Bxf4 {[%emt 0:00:37]} 18. Rde1 {[%emt 0:00:08]} c5 {[%emt 0:00:46]} 19. Be4 {[%emt 0:01:26]} Bxd2+ {[%emt 0:04:15]} 20. Qxd2 {[%emt 0:00:22]} Rd8 {[%emt 0:02:58]} 21. Qe3 {[%emt 0:00:59]} cxd4 {[%emt 0:07:59]} 22. Nxd4 {[%emt 0:00:28]} Nc5 {[%emt 0:00:48]} 23. Bxb7 {[%emt 0:01:29]} Qxb7 {[%emt 0:00:35]} 24. f4 {[%emt 0:00:43]} Qd5 {[%emt 0:04:04]} 25. f5 {[%emt 0:02:13]} Qxa2 {[%emt 0:02:19]} 26. fxe6 {[%emt 0:00:59]} Nxe6 {[%emt 0:07:09]} 27. Nxe6 {[%emt 0:00:17]} fxe6 {[%emt 0:01:15]} 28. Qxe6+ {[%emt 0:00:22]} Qxe6 {[%emt 0:00:18]} 29. Rxe6+ {[%emt 0:00:16]} Kd7 {[%emt 0:01:10]} 30. Rg6 {[%emt 0:00:49]} Rhg8 {[%emt 0:00:23]} 31. Kc2 {[%emt 0:00:46]} Kc7 {[%emt 0:00:38]} 32. Rf1 {[%emt 0:00:43]} Rd7 {[%emt 0:00:15]} 33. Re6 {[%emt 0:05:13]} Rgd8 {[%emt 0:00:54]} 34. Rfe1 {[%emt 0:02:13]} Kc8 {[%emt 0:05:11]} 35. Re7 {[%emt 0:00:30]} Rd2+ {[%emt 0:02:48]} 36. Kb3 {[%emt 0:00:18]} R2d7 {[%emt 0:00:34]} 37. Kb4 {[%emt 0:01:52]} Kb8 {[%emt 0:01:46]} 38. b3 {[%emt 0:01:33]} Kc7 {[%emt 0:02:25]} 39. c4 {[%emt 0:01:04]} Kb8 {[%emt 0:03:27]} 40. R1e4 {[%emt 0:00:50]} g6 {[%emt 0:01:22]} 41. Kb5 {[%emt 0:03:23]} Rd3 {[%emt 0:01:26]} 42. b4 {[%emt 0:01:54]} R3d6 {[%emt 0:03:01]} 43. c5 {[%emt 0:01:11]} a6+ {[%emt 0:01:13]} 44. Ka4 {[%emt 0:01:02]} b5+ {[%emt 0:00:03]} 45. Ka5 {[%emt 0:00:35]} Rc6 {[%emt 0:01:54]} 46. R7e6 {[%emt 0:01:58]} Rdc8 {[%emt 0:02:00]} 47. Rxc6 {[%emt 0:01:23]} Rxc6 {[%emt 0:00:09]} 48. Rd4 {[%emt 0:00:28]} Kc7 {[%emt 0:00:33]} 49. Rd6 {[%emt 0:00:39]} Rxd6 {[%emt 0:01:35]} 50. cxd6+ {[%emt 0:00:11]} Kxd6 {[%emt 0:00:30]} 51. Kxa6 {[%emt 0:00:23]} Ke5 {[%emt 0:00:48]} 52. Kxb5 {[%emt 0:00:07]} Kf4 {[%emt 0:00:23]} 53. Kc6 {[%emt 0:00:13]} Kg3 {[%emt 0:00:38]} 54. b5 {[%emt 0:00:09]} Kxh4 {[%emt 0:00:50]} 55. b6 {[%emt 0:00:06]} Kxg5 {[%emt 0:00:32]} 56. b7 {[%emt 0:00:08]} h4 {[%emt 0:00:22]} 57. b8=Q {[%emt 0:00:10]} Kg4 {[%emt 0:00:17]} 58. Qh2 {[%emt 0:00:11]} g5 {[%emt 0:01:07]} 59. Kd5 {[%emt 0:00:43]} Kf3 {[%emt 0:00:12]} 60. Kd4 {[%emt 0:01:05]} g4 {[%emt 0:00:30]} 61. Qxh4 {[%emt 0:01:32]} g3 {[%emt 0:00:08]} 62. Qh3 {[%emt 0:00:26]} Kf2 {[%emt 0:00:10]} 63. Ke4 {[%emt 0:00:57]} g2 {[%emt 0:00:30]} 64. Qh2 {[%emt 0:00:14]} Kf1 {[%emt 0:00:12]} 65. Qf4+ {[%emt 0:00:06]} Kg1 {[%emt 0:00:13]} 66. Kf3 {[%emt 0:00:51]} Kh1 {[%emt 0:01:01]} 67. Qh4+ {[%emt 0:00:22]} Kg1 {[%emt 0:00:08]} 68. Qf2+ {[%emt 0:00:08]} Kh1 {[%emt 0:00:30]} 69. Qxg2# {[%emt 0:00:08]} 1-0

[Event "FIDE WCCC Girls-10 2024"]
[Site "Montesilvano"]
[Date "2024.11.18"]
[Round "4.28"]
[White "Zhang, Weiai"]
[Black "Afandi, Sadagul"]
[Result "1-0"]
[Annotator "NA RC"]
[ECO "B01"]
[WhiteElo "1488"]
[BlackElo "1625"]
[PlyCount "145"]
[EventDate "2024.11.18"]
[EventType "swiss"]
[EventCountry "ITA"]
[SourceTitle "playchess.com"]
[Source "ChessBase"]
[SourceQuality "1"]
[TimeControl "5400+30"]

1. e4 {[%emt 0:00:02]} d5 {[%emt 0:00:10]} 2. exd5 {[%emt 0:00:05]} Nf6 {[%emt 0:00:08]} 3. d4 {[%emt 0:00:07]} Nxd5 {[%emt 0:00:10]} 4. c4 {[%emt 0:01:45]} Nf6 {[%emt 0:00:10]} 5. Nc3 {[%emt 0:00:17]} e6 {[%emt 0:00:16]} 6. Nf3 {[%emt 0:01:12]} Be7 {[%emt 0:00:42]} 7. Be2 {[%emt 0:00:32]} O-O {[%emt 0:00:32]} 8. O-O {[%emt 0:00:24]} Nbd7 {[%emt 0:00:40]} 9. Bf4 {[%emt 0:01:13]} c5 {[%emt 0:01:34]} 10. Nb5 {[%emt 0:09:02]} Qb6 {[%emt 0:11:57]} 11. d5 {[%emt 0:07:58]} Bd8 {[%emt 0:05:29]} 12. a4 {[%emt 0:04:03]} a5 {[%emt 0:06:28]} 13. d6 {[%emt 0:11:34]} Re8 {[%emt 0:04:50]} 14. Ne5 {[%emt 0:05:48]} Nb8 {[%emt 0:10:30]} 15. Bf3 {[%emt 0:15:58]} Bd7 {[%emt 0:08:48]} 16. Re1 {[%emt 0:09:40]} Bxb5 {[%emt 0:03:23]} 17. cxb5 {[%emt 0:02:24]} Nbd7 {[%emt 0:02:52]} 18. Nc4 {[%emt 0:04:17]} Qa7 {[%emt 0:02:15]} 19. Qd3 {[%emt 0:03:08]} Nb6 {[%emt 0:04:14]} 20. d7 {[%emt 0:12:39]} Re7 {[%emt 0:35:22]} 21. Bd6 {[%emt 0:01:49]} Nxc4 {[%emt 0:00:00]} 22. Bxe7 {[%emt 0:01:25]} Bxe7 {[%emt 0:00:00]} 23. Qxc4 {[%emt 0:00:36]} Rd8 {[%emt 0:00:00]} 24. Rad1 {[%emt 0:00:29]} Rxd7 {[%emt 0:00:00]} 25. Rxd7 {[%emt 0:00:32]} Nxd7 {[%emt 0:00:00]} 26. Qe4 {[%emt 0:00:50]} b6 {[%emt 0:00:00]} 27. Rd1 {[%emt 0:01:30]} Nf6 {[%emt 0:00:00]} 28. Qc6 {[%emt 0:00:40]} g6 {[%emt 0:00:00]} 29. Qa8+ {[%emt 0:01:43]} Qxa8 {[%emt 0:00:00]} 30. Bxa8 {[%emt 0:00:06]} Kg7 {[%emt 0:00:00]} 31. b3 {[%emt 0:01:07]} h6 {[%emt 0:00:00]} 32. f3 {[%emt 0:00:10]} g5 {[%emt 0:00:00]} 33. Kf2 {[%emt 0:00:38]} h5 {[%emt 0:00:00]} 34. Ke2 {[%emt 0:00:56]} Kg6 {[%emt 0:00:00]} 35. g3 {[%emt 0:00:43]} Kf5 {[%emt 0:00:00]} 36. Ke3 {[%emt 0:00:51]} Kg6 {[%emt 0:01:38]} 37. Be4+ {[%emt 0:00:35]} Nxe4 {[%emt 0:01:31]} 38. Kxe4 {[%emt 0:00:12]} Kf6 {[%emt 0:02:01]} 39. Rd7 {[%emt 0:00:09]} h4 {[%emt 0:00:30]} 40. gxh4 {[%emt 0:00:41]} gxh4 {[%emt 0:00:19]} 41. h3 {[%emt 0:00:25]} c4 {[%emt 0:01:21]} 42. bxc4 {[%emt 0:00:24]} Bc5 {[%emt 0:00:07]} 43. Rc7 {[%emt 0:00:14]} Be7 {[%emt 0:01:53]} 44. Rc6 {[%emt 0:01:45]} Bd8 {[%emt 0:00:35]} 45. c5 {[%emt 0:00:06]} bxc5 {[%emt 0:00:19]} 46. Rxc5 {[%emt 0:00:07]} Ke7 {[%emt 0:00:20]} 47. Rh5 {[%emt 0:00:32]} Kd6 {[%emt 0:00:19]} 48. Kf4 {[%emt 0:00:44]} f5 {[%emt 0:00:45]} 49. Rh6 {[%emt 0:00:54]} Kd7 {[%emt 0:02:15]} 50. Ke5 {[%emt 0:00:57]} Bc7+ {[%emt 0:00:21]} 51. Kf6 {[%emt 0:00:38]} Bd8+ {[%emt 0:00:15]} 52. Kf7 {[%emt 0:00:23]} e5 {[%emt 0:00:28]} 53. Rh5 {[%emt 0:00:17]} f4 {[%emt 0:00:57]} 54. Rxe5 {[%emt 0:00:13]} Bc7 {[%emt 0:00:08]} 55. Re7+ {[%emt 0:00:21]} Kd6 {[%emt 0:00:43]} 56. Rxc7 {[%emt 0:00:18]} Kxc7 {[%emt 0:00:19]} 57. Ke7 {[%emt 0:00:11]} Kb6 {[%emt 0:00:24]} 58. Kd6 {[%emt 0:00:07]} Kb7 {[%emt 0:00:05]} 59. Kc5 {[%emt 0:00:10]} Kc7 {[%emt 0:00:25]} 60. b6+ {[%emt 0:00:06]} Kb7 {[%emt 0:00:10]} 61. Kb5 {[%emt 0:00:06]} Kb8 {[%emt 0:00:15]} 62. Kxa5 {[%emt 0:00:34]} Kb7 {[%emt 0:00:10]} 63. Kb5 {[%emt 0:00:05]} Kb8 {[%emt 0:00:05]} 64. Kc6 {[%emt 0:00:14]} Ka8 {[%emt 0:00:12]} 65. b7+ {[%emt 0:00:07]} Kb8 {[%emt 0:00:04]} 66. a5 {[%emt 0:00:05]} Ka7 {[%emt 0:00:06]} 67. Kc7 {[%emt 0:00:07]} Ka6 {[%emt 0:00:07]} 68. b8=Q {[%emt 0:00:06]} Kxa5 {[%emt 0:00:05]} 69. Kc6 {[%emt 0:00:05]} Ka4 {[%emt 0:00:07]} 70. Kc5 {[%emt 0:00:04]} Ka3 {[%emt 0:00:05]} 71. Kc4 {[%emt 0:00:04]} Ka2 {[%emt 0:00:06]} 72. Kc3 {[%emt 0:00:03]} Ka1 {[%emt 0:00:07]} 73. Qb2# {[%emt 0:00:35]} 1-0

[Event "FIDE WCCC Girls-10 2024"]
[Site "Montesilvano"]
[Date "2024.11.18"]
[Round "4.30"]
[White "Minzat, Victoria"]
[Black "Nguyen, Lam Vy Le"]
[Result "1-0"]
[Annotator "NA RC"]
[ECO "C50"]
[WhiteElo "1505"]
[BlackElo "1728"]
[PlyCount "137"]
[EventDate "2024.11.18"]
[EventType "swiss"]
[EventCountry "ITA"]
[SourceTitle "playchess.com"]
[Source "ChessBase"]
[SourceQuality "1"]
[TimeControl "5400+30"]

1. e4 {[%emt 0:00:01]} e5 {[%emt 0:00:12]} 2. Nf3 {[%emt 0:00:09]} Nc6 {[%emt 0:00:10]} 3. Bc4 {[%emt 0:00:15]} Nf6 {[%emt 0:00:12]} 4. d3 {[%emt 0:00:09]} Bc5 {[%emt 0:00:15]} 5. O-O {[%emt 0:00:10]} a6 {[%emt 0:00:15]} 6. a3 {[%emt 0:00:48]} d6 {[%emt 0:00:10]} 7. h3 {[%emt 0:00:12]} O-O {[%emt 0:00:21]} 8. Be3 {[%emt 0:00:05]} Ba7 {[%emt 0:00:31]} 9. Re1 {[%emt 0:01:15]} Ne7 {[%emt 0:00:24]} 10. Nc3 {[%emt 0:01:29]} Ng6 {[%emt 0:01:08]} 11. Qd2 {[%emt 0:00:54]} c6 {[%emt 0:00:47]} 12. Bg5 {[%emt 0:00:42]} Be6 {[%emt 0:01:26]} 13. Ba2 {[%emt 0:01:29]} h6 {[%emt 0:01:46]} 14. Be3 {[%emt 0:01:14]} Nh5 {[%emt 0:02:21]} 15. Ne2 {[%emt 0:01:09]} Qf6 {[%emt 0:01:27]} 16. Ng3 {[%emt 0:01:35]} Nxg3 {[%emt 0:02:45]} 17. fxg3 {[%emt 0:00:28]} Bxh3 {[%emt 0:00:37]} 18. Bxa7 {[%emt 0:00:32]} Rxa7 {[%emt 0:00:32]} 19. Qf2 {[%emt 0:00:30]} Bxg2 {[%emt 0:01:57]} 20. Qxa7 {[%emt 0:09:56]} Bxf3 {[%emt 0:03:34]} 21. Qe3 {[%emt 0:04:22]} Bg4 {[%emt 0:01:01]} 22. Rf1 {[%emt 0:00:26]} Qe7 {[%emt 0:02:45]} 23. Rf2 {[%emt 0:01:51]} Kh7 {[%emt 0:01:34]} 24. Raf1 {[%emt 0:01:11]} f6 {[%emt 0:01:33]} 25. Rh2 {[%emt 0:03:36]} f5 {[%emt 0:01:53]} 26. exf5 {[%emt 0:02:00]} Bxf5 {[%emt 0:01:31]} 27. Rhf2 {[%emt 0:00:19]} Be6 {[%emt 0:01:53]} 28. Rxf8 {[%emt 0:01:18]} Nxf8 {[%emt 0:00:06]} 29. Rxf8 {[%emt 0:01:14]} Qxf8 {[%emt 0:00:25]} 30. Bxe6 {[%emt 0:00:10]} Qf6 {[%emt 0:00:43]} 31. Bh3 {[%emt 0:00:43]} d5 {[%emt 0:00:55]} 32. Qf2 {[%emt 0:00:49]} Qd6 {[%emt 0:01:38]} 33. Qf5+ {[%emt 0:02:50]} Kg8 {[%emt 0:02:40]} 34. Qe6+ {[%emt 0:01:47]} Qxe6 {[%emt 0:00:06]} 35. Bxe6+ {[%emt 0:00:10]} Kf8 {[%emt 0:00:09]} 36. Bc8 {[%emt 0:00:47]} b6 {[%emt 0:00:54]} 37. Bb7 {[%emt 0:00:26]} Ke7 {[%emt 0:00:08]} 38. Bxc6 {[%emt 0:00:21]} Kd6 {[%emt 0:00:13]} 39. Be8 {[%emt 0:00:46]} Kc5 {[%emt 0:00:14]} 40. Bg6 {[%emt 0:01:41]} b5 {[%emt 0:00:43]} 41. c3 {[%emt 0:00:37]} a5 {[%emt 0:00:50]} 42. b4+ {[%emt 0:00:34]} Kb6 {[%emt 0:01:54]} 43. Kf2 {[%emt 0:00:52]} axb4 {[%emt 0:00:33]} 44. cxb4 {[%emt 0:01:50]} Kc6 {[%emt 0:03:33]} 45. Ke3 {[%emt 0:00:24]} Kd7 {[%emt 0:02:22]} 46. Bf7 {[%emt 0:00:42]} Kc6 {[%emt 0:00:16]} 47. Be8+ {[%emt 0:00:19]} Kb6 {[%emt 0:00:27]} 48. Kf3 {[%emt 0:00:26]} g5 {[%emt 0:01:03]} 49. Kg4 {[%emt 0:00:35]} e4 {[%emt 0:00:29]} 50. dxe4 {[%emt 0:00:11]} dxe4 {[%emt 0:00:16]} 51. Bg6 {[%emt 0:00:49]} e3 {[%emt 0:01:27]} 52. Kf3 {[%emt 0:00:09]} e2 {[%emt 0:02:24]} 53. Kxe2 {[%emt 0:00:07]} Kc6 {[%emt 0:00:08]} 54. Kd3 {[%emt 0:00:05]} Kb6 {[%emt 0:00:59]} 55. Kd4 {[%emt 0:00:10]} Kc6 {[%emt 0:00:41]} 56. Be8+ {[%emt 0:00:11]} Kb6 {[%emt 0:00:06]} 57. Ke5 {[%emt 0:00:11]} Kc7 {[%emt 0:00:27]} 58. Bxb5 {[%emt 0:00:07]} h5 {[%emt 0:00:05]} 59. Bf1 {[%emt 0:00:09]} h4 {[%emt 0:00:06]} 60. gxh4 {[%emt 0:00:17]} gxh4 {[%emt 0:00:09]} 61. a4 {[%emt 0:00:06]} Kc6 {[%emt 0:00:56]} 62. a5 {[%emt 0:00:21]} Kb7 {[%emt 0:00:08]} 63. b5 {[%emt 0:00:29]} Ka7 {[%emt 0:00:05]} 64. b6+ {[%emt 0:00:21]} Kb7 {[%emt 0:00:03]} 65. Kd6 {[%emt 0:00:11]} Kb8 {[%emt 0:00:17]} 66. a6 {[%emt 0:00:12]} h3 {[%emt 0:00:08]} 67. Bxh3 {[%emt 0:00:10]} Ka8 {[%emt 0:00:03]} 68. Bg2+ {[%emt 0:00:07]} Kb8 {[%emt 0:01:04]} 69. a7+ {[%emt 0:00:06]} 1-0

[Event "FIDE WCCC Girls-10 2024"]
[Site "Montesilvano"]
[Date "2024.11.18"]
[Round "4.31"]
[White "Kiss, Villo"]
[Black "Mandukhai, Munkhbat"]
[Result "0-1"]
[Annotator "NA RC"]
[ECO "E08"]
[WhiteElo "1492"]
[BlackElo "1645"]
[PlyCount "58"]
[EventDate "2024.11.18"]
[EventType "swiss"]
[EventCountry "ITA"]
[SourceTitle "playchess.com"]
[Source "ChessBase"]
[SourceQuality "1"]
[TimeControl "5400+30"]

1. Nf3 {[%emt 0:00:02]} d5 {[%emt 0:00:12]} 2. d4 {[%emt 0:00:16]} Nf6 {[%emt 0:00:06]} 3. g3 {[%emt 0:00:15]} e6 {[%emt 0:00:05]} 4. Bg2 {[%emt 0:00:23]} Be7 {[%emt 0:00:06]} 5. O-O {[%emt 0:00:17]} O-O {[%emt 0:00:06]} 6. c4 {[%emt 0:00:13]} c6 {[%emt 0:00:09]} 7. b3 {[%emt 0:00:14]} b6 {[%emt 0:00:41]} 8. Bb2 {[%emt 0:00:32]} Bb7 {[%emt 0:00:15]} 9. Nc3 {[%emt 0:00:55]} Nbd7 {[%emt 0:01:16]} 10. Qc2 {[%emt 0:04:03]} c5 {[%emt 0:07:02]} 11. Rfd1 {[%emt 0:09:30]} Rc8 {[%emt 0:11:49]} 12. Rac1 {[%emt 0:05:45]} Qc7 {[%emt 0:04:15]} 13. Nh4 {[%emt 0:08:37]} cxd4 {[%emt 0:14:57]} 14. Nb5 {[%emt 0:01:28]} Qb8 {[%emt 0:01:49]} 15. Nxd4 {[%emt 0:00:53]} Ba6 {[%emt 0:06:31]} 16. Qd3 {[%emt 0:09:41]} dxc4 {[%emt 0:01:34]} 17. bxc4 {[%emt 0:00:24]} Ne5 {[%emt 0:05:26]} 18. Qb3 {[%emt 0:28:55]} Bxc4 {[%emt 0:01:35]} 19. Qa4 {[%emt 0:08:07]} b5 {[%emt 0:12:36]} 20. Qa6 {[%emt 0:04:28]} Bc5 {[%emt 0:07:57]} 21. f4 {[%emt 0:11:24]} Ned7 {[%emt 0:08:26]} 22. Kh1 {[%emt 0:01:44]} Bxd4 {[%emt 0:01:36]} 23. Bxd4 {[%emt 0:00:30]} Nc5 {[%emt 0:06:34]} 24. Bxc5 {[%emt 0:02:44]} Rxc5 {[%emt 0:00:15]} 25. e4 {[%emt 0:00:34]} Rfc8 {[%emt 0:00:59]} 26. e5 {[%emt 0:00:48]} Nd5 {[%emt 0:01:18]} 27. Bxd5 {[%emt 0:00:46]} Bxd5+ {[%emt 0:00:08]} 28. Kg1 {[%emt 0:00:12]} Rxc1 {[%emt 0:00:06]} 29. Rxc1 {[%emt 0:00:06]} Rxc1+ {[%emt 0:00:08]} 0-1

[Event "FIDE WCCC Girls-10 2024"]
[Site "Montesilvano"]
[Date "2024.11.18"]
[Round "4.32"]
[White "Sun, Yucan(Sd)"]
[Black "Lisboa, Maria Eduarda Mazzar"]
[Result "1-0"]
[Annotator "NA RC"]
[ECO "C11"]
[WhiteElo "1725"]
[BlackElo "1490"]
[PlyCount "65"]
[EventDate "2024.11.18"]
[EventType "swiss"]
[EventCountry "ITA"]
[SourceTitle "playchess.com"]
[Source "ChessBase"]
[SourceQuality "1"]
[TimeControl "5400+30"]

1. e4 {[%emt 0:00:02]} e6 {[%emt 0:00:10]} 2. d4 {[%emt 0:00:07]} d5 {[%emt 0:00:10]} 3. Nc3 {[%emt 0:00:13]} Nf6 {[%emt 0:00:25]} 4. e5 {[%emt 0:00:06]} Nfd7 {[%emt 0:00:28]} 5. Nce2 {[%emt 0:00:23]} c5 {[%emt 0:00:26]} 6. c3 {[%emt 0:00:06]} Nc6 {[%emt 0:00:25]} 7. f4 {[%emt 0:00:22]} a6 {[%emt 0:01:05]} 8. Nf3 {[%emt 0:00:41]} cxd4 {[%emt 0:05:54]} 9. cxd4 {[%emt 0:01:42]} Be7 {[%emt 0:02:04]} 10. g3 {[%emt 0:13:31]} O-O {[%emt 0:09:10]} 11. Bh3 {[%emt 0:01:50]} Nb6 {[%emt 0:21:47]} 12. O-O {[%emt 0:05:38]} Bd7 {[%emt 0:02:16]} 13. a3 {[%emt 0:12:11]} Rc8 {[%emt 0:07:59]} 14. Qd3 {[%emt 0:08:57]} g6 {[%emt 0:13:09]} 15. Kh1 {[%emt 0:06:38]} Kh8 {[%emt 0:07:17]} 16. g4 {[%emt 0:06:20]} Rg8 {[%emt 0:11:20]} 17. f5 {[%emt 0:06:58]} exf5 {[%emt 0:00:36]} 18. gxf5 {[%emt 0:00:16]} gxf5 {[%emt 0:00:12]} 19. Bxf5 {[%emt 0:00:33]} Bxf5 {[%emt 0:00:16]} 20. Qxf5 {[%emt 0:00:17]} f6 {[%emt 0:10:03]} 21. Bh6 {[%emt 0:03:10]} Rg6 {[%emt 0:01:15]} 22. Qh3 {[%emt 0:07:38]} Qd7 {[%emt 0:01:54]} 23. e6 {[%emt 0:00:43]} Qd6 {[%emt 0:00:53]} 24. Nf4 {[%emt 0:01:17]} Rgg8 {[%emt 0:00:16]} 25. Nh4 {[%emt 0:03:18]} Rg5 {[%emt 0:01:58]} 26. Bxg5 {[%emt 0:02:11]} fxg5 {[%emt 0:00:10]} 27. Nhg6+ {[%emt 0:00:16]} Kg8 {[%emt 0:00:32]} 28. Nxe7+ {[%emt 0:00:12]} Nxe7 {[%emt 0:00:18]} 29. Nh5 {[%emt 0:00:13]} h6 {[%emt 0:00:23]} 30. Nf6+ {[%emt 0:00:30]} Kg7 {[%emt 0:00:14]} 31. Nh5+ {[%emt 0:00:32]} Kg8 {[%emt 0:00:08]} 32. Rf7 {[%emt 0:00:36]} Kh8 {[%emt 0:02:43]} 33. Nf6 {[%emt 0:00:42]} 1-0